fUSD/lending_fUSD_20250720
["ID","MTS","AMOUNT","RATE_DAILY","PERIOD"]
[373592541,1753055484421,-480.0,0.00019397,2]
[373592542,1753055484431,-1423.65,0.00019397,2]
[373592543,1753055484441,-1176.44,0.00019397,2]
[373592544,1753055484451,-598.64,0.00019397,2]
[373592545,1753055484460,-480.0,0.00019397,2]
[373592546,1753055484470,-1698.98,0.00019397,2]
[373592547,1753055484480,-1420.65,0.00019397,2]
[373592548,1753055484490,-480.0,0.00019397,2]
[373592549,1753055484500,-480.0,0.00019397,2]
[373592550,1753055484510,-480.0,0.00019397,2]
[373592551,1753055484520,-464.91,0.00019397,2]
[373592552,1753055484530,-1141.6,0.00019397,2]
[373592553,1753055484540,-863.32,0.00019397,2]
[373592554,1753055484552,-480.0,0.00019397,2]
[373592555,1753055484562,-5712.58,0.00019397,2]
[373592556,1753055484572,-725.79,0.00019397,2]
[373592557,1753055484582,-2053.25,0.00019397,2]
[373592558,1753055484592,-3858.72,0.00019397,2]
[373592559,1753055484602,-480.0,0.00019397,2]
[373592560,1753055484612,-480.0,0.00019397,2]
[373592561,1753055484622,-1827.89,0.00019397,2]
[373592562,1753055484632,-480.0,0.00019397,2]
[373592563,1753055484642,-3292.51,0.00019397,2]
[373592564,1753055484652,-480.0,0.00019397,2]
[373592565,1753055484662,-1732.45,0.00019397,2]
[373592566,1753055484672,-1077.42,0.00019397,2]
[373592567,1753055484682,-480.0,0.00019397,2]
[373592568,1753055484692,-480.0,0.00019397,2]
[373592569,1753055484703,-480.0,0.00019397,2]
[373592570,1753055484714,-480.0,0.00019397,2]
[373592571,1753055484724,-480.0,0.00019397,2]
[373592572,1753055484734,-2614.35,0.00019397,2]
[373592573,1753055484744,-850.02,0.00019397,2]
[373592574,1753055484764,-1026.25,0.00019397,2]
[373592575,1753055484775,-480.0,0.00019397,2]
[373592576,1753055484785,-480.0,0.00019397,2]
[373592577,1753055484796,-1364.06,0.00019397,2]
[373592578,1753055484806,-1944.5,0.00019397,2]
[373592579,1753055484815,-647.47,0.00019397,2]
[373592580,1753055484825,-852.44,0.00019397,2]
[373592581,1753055484835,-536.54388981,0.00019397,2]
[373592582,1753055484845,-480.0,0.00019397,2]
[373592583,1753055484855,-480.0,0.00019397,2]
[373592584,1753055484865,-480.0,0.00019397,2]
[373592585,1753055484875,-2084.33,0.00019397,2]
[373592586,1753055484884,-514.75,0.00019397,2]
[373592587,1753055484894,-256.01,0.00019397,2]
[373592588,1753055484904,-584.67,0.00019397,2]
[373592589,1753055484914,-578.26,0.00019397,2]
[373592590,1753055484924,-480.0,0.00019397,2]
[373592591,1753055484934,-556.44,0.00019397,2]
[373592592,1753055484944,-480.0,0.00019397,2]
[373592593,1753055484954,-1404.43,0.00019397,2]
[373592594,1753055484964,-480.0,0.00019397,2]
[373592595,1753055484974,-480.0,0.00019397,2]
[373592596,1753055484984,-909.49,0.00019397,2]
[373592597,1753055484994,-598.52,0.00019397,2]
[373592598,1753055485003,-6912.92,0.00019397,2]
[373592599,1753055485015,-480.0,0.00019397,2]
[373592600,1753055485027,-2197.18,0.00019397,2]
[373592601,1753055485038,-6861.5,0.00019397,2]
[373592602,1753055485049,-999.53,0.00019397,2]
[373592603,1753055485059,-480.0,0.00019397,2]
[373592604,1753055485069,-505.52,0.00019397,2]
[373592605,1753055485080,-400.0,0.00019397,2]
[373592606,1753055485091,-480.0,0.00019397,2]
[373592607,1753055485103,-2522.12,0.00019397,2]
[373592608,1753055485113,-754.6,0.00019397,2]
[373592609,1753055485122,-480.0,0.00019397,2]
[373592610,1753055485132,-979.45,0.00019397,2]
[373592611,1753055485143,-527.68,0.00019397,2]
[373592612,1753055485153,-1327.7,0.00019397,2]
[373592613,1753055485163,-578.11,0.00019397,2]
[373592614,1753055485173,-480.0,0.00019397,2]
[373592615,1753055485183,-561.28,0.00019397,2]
[373592616,1753055485192,-487.44,0.00019397,2]
[373592617,1753055485202,-480.0,0.00019397,2]
[373592618,1753055485212,-483.15,0.00019397,2]
[373592619,1753055485221,-817.12,0.00019397,2]
[373592620,1753055485231,-1704.69,0.00019397,2]
[373592621,1753055485242,-480.0,0.00019397,2]
[373592622,1753055485251,-1378.56,0.00019397,2]
[373592623,1753055485262,-577.6,0.00019397,2]
[373592624,1753055485272,-480.0,0.00019397,2]
[373592625,1753055485282,-623.1,0.00019397,2]
[373592626,1753055485292,-480.0,0.00019397,2]
[373592627,1753055485304,-368.18570127,0.00019397,2]
[373592628,1753055485314,-985.63,0.00019397,2]
[373592629,1753055485324,-1583.49,0.00019397,2]
[373592630,1753055485334,-480.0,0.00019397,2]
[373592631,1753055485345,-460.0,0.00019397,2]
[373592632,1753055485356,-460.0,0.00019397,2]
[373592633,1753055485366,-1388.15,0.00019397,2]
[373592634,1753055485375,-480.0,0.00019397,2]
[373592635,1753055485386,-340.0,0.00019397,2]
[373592636,1753055485397,-657.93,0.00019397,2]
[373592637,1753055485407,-480.0,0.00019397,2]
[373592638,1753055485416,-480.0,0.00019397,2]
[373592639,1753055485426,-2594.98,0.00019397,2]
[373592640,1753055485436,-480.0,0.00019397,2]
[373592641,1753055485446,-7034.27,0.00019397,2]
[373592642,1753055485455,-743.99,0.00019397,2]
[373592643,1753055485465,-480.0,0.00019397,2]
[373592644,1753055485475,-480.0,0.00019397,2]
[373592645,1753055485485,-480.0,0.00019397,2]
[373592646,1753055485495,-480.0,0.00019397,2]
[373592647,1753055485505,-3539.75,0.00019397,2]
[373592648,1753055485515,-1004.16,0.00019397,2]
[373592649,1753055485525,-737.48,0.00019397,2]
[373592650,1753055485535,-480.0,0.00019397,2]
[373592651,1753055485546,-1472.24,0.00019397,2]
[373592652,1753055485556,-4433.87,0.00019397,2]
[373592653,1753055485566,-480.0,0.00019397,2]
[373592654,1753055485575,-480.0,0.00019397,2]
[373592655,1753055485586,-1445.45,0.00019397,2]
[373592656,1753055485595,-480.0,0.00019397,2]
[373592657,1753055485605,-480.0,0.00019397,2]
[373592658,1753055485615,-480.0,0.00019397,2]
[373592659,1753055485626,-802.79,0.00019397,2]
[373592660,1753055485636,-2205.42,0.00019397,2]
[373592661,1753055485646,-3481.93,0.00019397,2]
[373592662,1753055485656,-480.0,0.00019397,2]
[373592663,1753055485666,-480.0,0.00019397,2]
[373592664,1753055485676,-2642.28,0.00019397,2]
[373592665,1753055485686,-480.0,0.00019397,2]
[373592666,1753055485696,-1208.88,0.00019397,2]
[373592667,1753055485706,-514.69,0.00019397,2]
[373592668,1753055485716,-1029.82,0.00019397,2]
[373592669,1753055485727,-480.0,0.00019397,2]
[373592670,1753055485736,-480.0,0.00019397,2]
[373592671,1753055485747,-1095.25,0.00019397,2]
[373592672,1753055485758,-882.72,0.00019397,2]
[373592673,1753055485768,-262.08819655,0.00019397,2]
[373592674,1753055485778,-480.0,0.00019397,2]
[373592675,1753055485788,-480.0,0.00019397,2]
[373592676,1753055485800,-1439.85,0.00019397,2]
[373592677,1753055485810,-1950.55,0.00019397,2]
[373592678,1753055485820,-461.88879858,0.00019397,2]
[373592679,1753055485829,-953.77,0.00019397,2]
[373592680,1753055485840,-480.0,0.00019397,2]
[373592681,1753055485849,-480.0,0.00019397,2]
[373592682,1753055485859,-961.17,0.00019397,2]
[373592683,1753055485869,-2483.28,0.00019397,2]
[373592684,1753055485879,-1906.99,0.00019397,2]
[373592685,1753055485889,-480.0,0.00019397,2]
[373592686,1753055485899,-1454.01,0.00019397,2]
[373592687,1753055485909,-480.0,0.00019397,2]
[373592688,1753055485920,-1265.49,0.00019397,2]
[373592689,1753055485929,-480.0,0.00019397,2]
[373592690,1753055485940,-610.22,0.00019397,2]
[373592691,1753055486244,-5184.78,0.00019397,2]
[373592692,1753055486253,-480.0,0.00019397,2]
[373592693,1753055486263,-480.0,0.00019397,2]
[373592694,1753055486273,-1510.22,0.00019397,2]
[373592695,1753055486283,-20753.93,0.00019397,2]
[373592696,1753055486292,-43569.02,0.00019397,2]
[373592697,1753055486305,-567.19,0.00019397,2]
[373592698,1753055486314,-929.07,0.00019397,2]
[373592699,1753055486324,-2416.64,0.00019397,2]
[373592700,1753055486334,-3149.28,0.00019397,2]
[373592701,1753055486344,-2652.86,0.00019397,2]
[373592702,1753055486353,-335.66068,0.00019397,2]
[373592703,1753055486363,-837.08,0.00019397,2]
[373592704,1753055486372,-968.5,0.00019397,2]
[373592705,1753055486382,-480.0,0.00019397,2]
[373592706,1753055486391,-873.48,0.00019397,2]
[373592707,1753055486401,-1144.05,0.00019397,2]
[373592708,1753055486411,-665.72,0.00019397,2]
[373592709,1753055486420,-4582.78,0.00019397,2]
[373592710,1753055486430,-1162.44,0.00019397,2]
[373592711,1753055486439,-480.0,0.00019397,2]
[373592712,1753055486449,-2848.38,0.00019397,2]
[373592713,1753055486459,-1300.7,0.00019397,2]
[373592714,1753055486468,-489.81516965,0.00019397,2]
[373592715,1753055486478,-697.79,0.00019397,2]
[373592716,1753055486488,-4306.73,0.00019397,2]
[373592717,1753055486498,-480.0,0.00019397,2]
[373592718,1753055486507,-667.28,0.00019397,2]
[373592719,1753055486517,-480.0,0.00019397,2]
[373592720,1753055486526,-480.0,0.00019397,2]
[373592721,1753055486536,-1516.36,0.00019397,2]
[373592722,1753055486548,-480.0,0.00019397,2]
[373592723,1753055486558,-1503.11,0.00019397,2]
[373592724,1753055486568,-1997.74,0.00019397,2]
[373592725,1753055486578,-8864.03,0.00019397,2]
[373592726,1753055486588,-480.0,0.00019397,2]
[373592727,1753055486598,-2254.31,0.00019397,2]
[373592728,1753055486608,-480.0,0.00019397,2]
[373592729,1753055486618,-2414.83,0.00019397,2]
[373592730,1753055486628,-480.0,0.00019397,2]
[373592731,1753055486638,-2346.59,0.00019397,2]
[373592732,1753055486648,-480.0,0.00019397,2]
[373592733,1753055486657,-481.79,0.00019397,2]
[373592734,1753055486667,-480.0,0.00019397,2]
[373592735,1753055486677,-3298.81,0.00019397,2]
[373592736,1753055486687,-480.0,0.00019397,2]
[373592737,1753055486696,-480.0,0.00019397,2]
[373592738,1753055486706,-1508.5,0.00019397,2]
[373592739,1753055486715,-4353.48,0.00019397,2]
[373592740,1753055486725,-480.0,0.00019397,2]
[373592741,1753055486735,-1340.37,0.00019397,2]
[373592742,1753055486751,-741.2,0.00019397,2]
[373592743,1753055486762,-480.0,0.00019397,2]
[373592744,1753055486773,-529.22,0.00019397,2]
[373592745,1753055486783,-480.0,0.00019397,2]
[373592746,1753055486793,-480.0,0.00019397,2]
[373592747,1753055486805,-480.0,0.00019397,2]
[373592748,1753055486815,-2980.28,0.00019397,2]
[373592749,1753055486824,-480.0,0.00019397,2]
[373592750,1753055486835,-480.0,0.00019397,2]
[373592751,1753055486845,-1170.02,0.00019397,2]
[373592752,1753055486855,-480.0,0.00019397,2]
[373592753,1753055486865,-1088.82,0.00019397,2]
[373592754,1753055486875,-600.73232725,0.00019397,2]
[373592755,1753055486886,-480.0,0.00019397,2]
[373592756,1753055486895,-1109.08,0.00019397,2]
[373592757,1753055486905,-480.0,0.00019397,2]
[373592758,1753055486915,-480.0,0.00019397,2]
[373592759,1753055486925,-480.0,0.00019397,2]
[373592760,1753055486935,-7882.05,0.00019397,2]
[373592761,1753055486944,-825.59,0.00019397,2]
[373592762,1753055486954,-150.0,0.00019405,2]
[373592763,1753055486964,-600.0,0.00019414,2]
[373592764,1753055486974,-305.02,0.00019414,2]
[373592765,1753055486984,-3003.0,0.00019421,2]
[373592766,1753055486994,-1757.0,0.00019421,2]
[373592767,1753055487004,-229.3,0.00019432,2]
[373592768,1753055487013,-150.0,0.00019443,2]
[373592769,1753055487023,-1040.0,0.00019452,2]
[373592770,1753055487034,-939.0,0.00019452,2]
[373592771,1753055487044,-150.0,0.00019455,2]
[373592772,1753055487057,-150.0,0.0001946,2]
[373592773,1753055487066,-62070.7466208,0.00019493,2]
[373592774,1753055487076,-6214.0835346,0.00019493,2]
[373592775,1753055487086,-212.4292827,0.00019496,2]
[373592776,1753055487095,-523.8189342,0.000195,2]
[373592777,1753055487105,-1161.04,0.00019505,2]
[373592778,1753055487115,-1161.04,0.00019505,2]
[373592779,1753055487125,-1161.04,0.00019505,2]
[373592780,1753055487134,-1161.04,0.00019505,2]
[373592781,1753055487144,-1161.22147978,0.00019505,2]
[373592782,1753055487154,-906.747034,0.00019506,2]
[373592783,1753055487163,-882.095576,0.00019506,2]
[373592784,1753055487173,-842.356741,0.00019506,2]
[373592785,1753055487183,-368.79913807,0.00019506,2]
[373592786,1753055487193,-480.0,0.00019506,2]
[373592787,1753055487202,-480.0,0.00019506,2]
[373592788,1753055487212,-480.0,0.00019506,2]
[373592789,1753055487221,-548.08,0.00019506,2]
[373592790,1753055487231,-368.70333878,0.00019506,2]
[373592791,1753055487241,-480.0,0.00019506,2]
[373592792,1753055487251,-1766.02,0.00019506,2]
[373592793,1753055487260,-480.0,0.00019506,2]
[373592794,1753055487270,-480.0,0.00019506,2]
[373592795,1753055487280,-480.0,0.00019506,2]
[373592796,1753055487289,-480.0,0.00019506,2]
[373592797,1753055487299,-480.0,0.00019506,2]
[373592798,1753055487309,-189.74010511,0.00019506,2]
[373592799,1753055487318,-480.0,0.00019506,2]
[373592800,1753055487328,-480.0,0.00019506,2]
[373592801,1753055487337,-480.0,0.00019506,2]
[373592802,1753055487346,-480.0,0.00019506,2]
[373592803,1753055487356,-259.08118864,0.00019506,2]
[373592804,1753055487366,-446.32401789,0.00019506,2]
[373592805,1753055487375,-480.0,0.00019506,2]
[373592806,1753055487385,-480.0,0.00019506,2]
[373592807,1753055487394,-480.0,0.00019506,2]
[373592808,1753055487404,-480.0,0.00019506,2]
[373592809,1753055487414,-480.0,0.00019506,2]
[373592810,1753055487423,-480.0,0.00019506,2]
[373592811,1753055487433,-480.0,0.00019506,2]
[373592812,1753055487446,-480.0,0.00019506,2]
[373592813,1753055487463,-480.0,0.00019506,2]
[373592814,1753055487473,-480.0,0.00019506,2]
[373592815,1753055487483,-480.0,0.00019506,2]
[373592816,1753055487493,-480.0,0.00019506,2]
[373592817,1753055487503,-480.0,0.00019506,2]
[373592818,1753055487514,-480.0,0.00019506,2]
[373592819,1753055487524,-480.0,0.00019506,2]
[373592820,1753055487534,-480.0,0.00019506,2]
[373592821,1753055487544,-480.0,0.00019506,2]
[373592822,1753055487555,-480.0,0.00019506,2]
[373592823,1753055487565,-480.0,0.00019506,2]
[373592824,1753055487576,-480.0,0.00019506,2]
[373592825,1753055487586,-480.0,0.00019506,2]
[373592826,1753055487596,-480.0,0.00019506,2]
[373592827,1753055487606,-480.0,0.00019506,2]
[373592828,1753055487616,-550.07,0.00019506,2]
[373592829,1753055487626,-660.38,0.00019506,2]
[373592830,1753055487636,-480.0,0.00019506,2]
[373592831,1753055487646,-480.0,0.00019506,2]
[373592832,1753055487656,-480.0,0.00019506,2]
[373592833,1753055487665,-725.02,0.00019506,2]
[373592834,1753055487675,-480.0,0.00019506,2]
[373592835,1753055487685,-480.0,0.00019506,2]
[373592836,1753055487694,-565.28,0.00019506,2]
[373592837,1753055487704,-480.0,0.00019506,2]
[373592838,1753055487714,-480.0,0.00019506,2]
[373592839,1753055487724,-480.0,0.00019506,2]
[373592840,1753055487733,-480.0,0.00019506,2]
[373592841,1753055487746,-963.53,0.00019506,2]
[373592842,1753055487759,-480.0,0.00019506,2]
[373592843,1753055487768,-480.0,0.00019506,2]
[373592844,1753055487778,-480.0,0.00019506,2]
[373592845,1753055487788,-320.0,0.00019506,2]
[373592846,1753055487798,-480.0,0.00019506,2]
[373592847,1753055487807,-480.0,0.00019506,2]
[373592848,1753055487817,-480.0,0.00019506,2]
[373592849,1753055487829,-901.55,0.00019506,2]
[373592850,1753055487838,-480.0,0.00019506,2]
[373592851,1753055487848,-480.0,0.00019506,2]
[373592852,1753055487858,-293.043944,0.00019506,2]
[373592853,1753055487868,-704.94,0.00019506,2]
[373592854,1753055487878,-561.37,0.00019506,2]
[373592855,1753055487888,-457.88671724,0.00019506,2]
[373592856,1753055487897,-480.0,0.00019506,2]
[373592857,1753055487909,-480.0,0.00019506,2]
[373592858,1753055487922,-534.06,0.00019506,2]
[373592859,1753055487932,-480.0,0.00019506,2]
[373592860,1753055487942,-480.0,0.00019506,2]
[373592861,1753055487951,-480.0,0.00019506,2]
[373592862,1753055487961,-480.0,0.00019506,2]
[373592863,1753055487971,-772.47,0.00019506,2]
[373592864,1753055487980,-954.23,0.00019506,2]
[373592865,1753055487990,-1097.85,0.00019506,2]
[373592866,1753055487999,-1458.93,0.00019506,2]
[373592867,1753055488009,-404.97845138,0.00019506,2]
[373592868,1753055488019,-981.72,0.00019506,2]
[373592869,1753055488028,-480.0,0.00019506,2]
[373592870,1753055488038,-480.0,0.00019506,2]
[373592871,1753055488048,-739.84,0.00019506,2]
[373592872,1753055488057,-480.0,0.00019506,2]
[373592873,1753055488067,-480.0,0.00019506,2]
[373592874,1753055488076,-480.0,0.00019506,2]
[373592875,1753055488086,-660.09,0.00019506,2]
[373592876,1753055488095,-1056.59,0.00019506,2]
[373592877,1753055488105,-637.76,0.00019506,2]
[373592878,1753055488115,-480.0,0.00019506,2]
[373592879,1753055488125,-480.0,0.00019506,2]
[373592880,1753055488134,-480.0,0.00019506,2]
[373592881,1753055488144,-480.0,0.00019506,2]
[373592882,1753055488154,-1177.27,0.00019506,2]
[373592883,1753055488163,-1042.68,0.00019506,2]
[373592884,1753055488173,-512.59,0.00019506,2]
[373592885,1753055488182,-480.0,0.00019506,2]
[373592886,1753055488191,-480.0,0.00019506,2]
[373592887,1753055488201,-1082.73,0.00019506,2]
[373592888,1753055488210,-480.0,0.00019506,2]
[373592889,1753055488220,-480.0,0.00019506,2]
[373592890,1753055488229,-618.4,0.00019506,2]
[373592891,1753055488239,-477.74,0.00019506,2]
[373592892,1753055488248,-1150.76,0.00019506,2]
[373592893,1753055488258,-480.0,0.00019506,2]
[373592894,1753055488272,-865.93,0.00019506,2]
[373592895,1753055488290,-725.55,0.00019506,2]
[373592896,1753055488302,-480.0,0.00019506,2]
[373592897,1753055488311,-480.0,0.00019506,2]
[373592898,1753055488321,-480.0,0.00019506,2]
[373592899,1753055488331,-480.0,0.00019506,2]
[373592900,1753055488340,-480.0,0.00019506,2]
[373592901,1753055488349,-480.0,0.00019506,2]
[373592902,1753055488358,-749.26,0.00019506,2]
[373592903,1753055488368,-1572.15,0.00019506,2]
[373592904,1753055488378,-2293.85,0.00019506,2]
[373592905,1753055488387,-480.0,0.00019506,2]
[373592906,1753055488397,-480.0,0.00019506,2]
[373592907,1753055488407,-587.44,0.00019506,2]
[373592908,1753055488416,-865.65,0.00019506,2]
[373592909,1753055488425,-1259.0,0.00019506,2]
[373592910,1753055488434,-1033.02,0.00019506,2]
[373592911,1753055488444,-601.75,0.00019506,2]
[373592912,1753055488454,-1336.39,0.00019506,2]
[373592913,1753055488464,-953.1,0.00019506,2]
[373592914,1753055488475,-850.35,0.00019506,2]
[373592915,1753055488485,-917.93,0.00019506,2]
[373592916,1753055488494,-1757.42,0.00019506,2]
[373592917,1753055488504,-480.0,0.00019506,2]
[373592918,1753055488514,-480.0,0.00019506,2]
[373592919,1753055488523,-480.0,0.00019506,2]
[373592920,1753055488533,-286.47758435,0.00019506,2]
[373592921,1753055488543,-480.0,0.00019506,2]
[373592922,1753055488556,-480.0,0.00019506,2]
[373592923,1753055488566,-862.39,0.00019506,2]
[373592924,1753055488576,-480.0,0.00019506,2]
[373592925,1753055488586,-480.0,0.00019506,2]
[373592926,1753055488596,-480.0,0.00019506,2]
[373592927,1753055488696,-480.0,0.00019506,2]
[373592928,1753055488705,-658.91,0.00019506,2]
[373592929,1753055488715,-480.0,0.00019506,2]
[373592930,1753055488724,-480.0,0.00019506,2]
[373592931,1753055488733,-609.01,0.00019506,2]
[373592932,1753055488743,-480.0,0.00019506,2]
[373592933,1753055488756,-480.0,0.00019506,2]
[373592934,1753055488766,-826.89,0.00019506,2]
[373592935,1753055488776,-3180.24,0.00019506,2]
[373592936,1753055488785,-480.0,0.00019506,2]
[373592937,1753055488795,-1373.17,0.00019506,2]
[373592938,1753055488806,-4973.5,0.00019506,2]
[373592939,1753055488815,-480.0,0.00019506,2]
[373592940,1753055488825,-480.0,0.00019506,2]
[373592941,1753055488834,-480.0,0.00019506,2]
[373592942,1753055488843,-766.75,0.00019506,2]
[373592943,1753055488853,-605.82572771,0.00019506,2]
[373592944,1753055488862,-480.0,0.00019506,2]
[373592945,1753055488871,-1144.59,0.00019506,2]
[373592946,1753055488880,-1350.41,0.00019506,2]
[373592947,1753055488890,-480.0,0.00019506,2]
[373592948,1753055488899,-480.0,0.00019506,2]
[373592949,1753055488909,-1658.82,0.00019506,2]
[373592950,1753055488918,-614.53,0.00019506,2]
[373592951,1753055488928,-1307.47,0.00019506,2]
[373592952,1753055488938,-1190.75,0.00019506,2]
[373592953,1753055488948,-480.0,0.00019506,2]
[373592954,1753055488959,-1450.15,0.00019506,2]
[373592955,1753055488970,-480.0,0.00019506,2]
[373592956,1753055488980,-480.0,0.00019506,2]
[373592957,1753055488990,-480.0,0.00019506,2]
[373592958,1753055489000,-1068.24,0.00019506,2]
[373592959,1753055489010,-850.85,0.00019506,2]
[373592960,1753055489020,-480.0,0.00019506,2]
[373592961,1753055489029,-480.0,0.00019506,2]
[373592962,1753055489039,-2195.9,0.00019506,2]
[373592963,1753055489048,-480.0,0.00019506,2]
[373592964,1753055489058,-671.94,0.00019506,2]
[373592965,1753055489067,-480.0,0.00019506,2]
[373592966,1753055489077,-480.0,0.00019506,2]
[373592967,1753055489088,-480.0,0.00019506,2]
[373592968,1753055489098,-611.63,0.00019506,2]
[373592969,1753055489108,-741.55,0.00019506,2]
[373592970,1753055489119,-480.0,0.00019506,2]
[373592971,1753055489129,-1191.53,0.00019506,2]
[373592972,1753055489139,-480.0,0.00019506,2]
[373592973,1753055489148,-480.0,0.00019506,2]
[373592974,1753055489158,-566.65,0.00019506,2]
[373592975,1753055489167,-480.0,0.00019506,2]
[373592976,1753055489178,-480.0,0.00019506,2]
[373592977,1753055489187,-996.3,0.00019506,2]
[373592978,1753055489196,-566.48,0.00019506,2]
[373592979,1753055489206,-229.48149005,0.00019506,2]
[373592980,1753055489215,-480.0,0.00019506,2]
[373592981,1753055489224,-480.0,0.00019506,2]
[373592982,1753055489234,-480.0,0.00019506,2]
[373592983,1753055489243,-480.0,0.00019506,2]
[373592984,1753055489252,-517.45,0.00019506,2]
[373592985,1753055489262,-1698.74,0.00019506,2]
[373592986,1753055489272,-2386.97,0.00019506,2]
[373592987,1753055489281,-388.95555834,0.00019506,2]
[373592988,1753055489291,-480.0,0.00019506,2]
[373592989,1753055489303,-3864.18,0.00019506,2]
[373592990,1753055489312,-8107.22,0.00019506,2]
[373592991,1753055489323,-480.0,0.00019506,2]
[373592992,1753055489332,-480.0,0.00019506,2]
[373592993,1753055489341,-945.51,0.00019506,2]
[373592994,1753055489351,-663.89,0.00019506,2]
[373592995,1753055489360,-480.0,0.00019506,2]
[373592996,1753055489370,-1066.56,0.00019506,2]
[373592997,1753055489379,-513.16,0.00019506,2]
[373592998,1753055489388,-480.0,0.00019506,2]
[373592999,1753055489398,-480.0,0.00019506,2]
[373593000,1753055489407,-480.0,0.00019506,2]
[373593001,1753055489417,-530.44,0.00019506,2]
[373593002,1753055489427,-846.49,0.00019506,2]
[373593003,1753055489436,-4546.29,0.00019506,2]
[373593004,1753055489445,-1554.92,0.00019506,2]
[373593005,1753055489455,-800.06,0.00019506,2]
[373593006,1753055489464,-480.0,0.00019506,2]
[373593007,1753055489473,-480.0,0.00019506,2]
[373593008,1753055489483,-729.2,0.00019506,2]
[373593009,1753055489493,-480.0,0.00019506,2]
[373593010,1753055489502,-1859.83,0.00019506,2]
[373593011,1753055489512,-1133.03,0.00019506,2]
[373593012,1753055489521,-888.11,0.00019506,2]
[373593013,1753055489530,-480.0,0.00019506,2]
[373593014,1753055489540,-480.0,0.00019506,2]
[373593015,1753055489552,-548.54,0.00019506,2]
[373593016,1753055489560,-775.2,0.00019506,2]
[373593017,1753055489570,-1073.63,0.00019506,2]
[373593018,1753055489579,-460.0,0.00019506,2]
[373593019,1753055489588,-886.56,0.00019506,2]
[373593020,1753055489598,-480.0,0.00019506,2]
[373593021,1753055489608,-2149.1,0.00019506,2]
[373593022,1753055489618,-480.0,0.00019506,2]
[373593023,1753055489627,-3977.95,0.00019506,2]
[373593024,1753055489637,-480.0,0.00019506,2]
[373593025,1753055489646,-927.74,0.00019506,2]
[373593026,1753055489656,-974.5,0.00019506,2]
[373593027,1753055489665,-504.05,0.00019506,2]
[373593028,1753055489675,-480.0,0.00019506,2]
[373593029,1753055489684,-460.00002673,0.00019506,2]
[373593030,1753055489694,-562.45,0.00019506,2]
[373593031,1753055489703,-874.56,0.00019506,2]
[373593032,1753055489713,-480.0,0.00019506,2]
[373593033,1753055489722,-480.0,0.00019506,2]
[373593034,1753055489731,-480.0,0.00019506,2]
[373593035,1753055489740,-1406.05,0.00019506,2]
[373593036,1753055489754,-1900.03,0.00019506,2]
[373593037,1753055489764,-480.0,0.00019506,2]
[373593038,1753055489774,-480.0,0.00019506,2]
[373593039,1753055489783,-480.0,0.00019506,2]
[373593040,1753055489793,-2845.77,0.00019506,2]